[Event "European Women Blitz-ch 2024"]
[Site "Monaco"]
[Date "2025.01.10"]
[Round "1.7"]
[White "Bernard, Ines"]
[Black "Paehtz, Elisabeth"]
[Result "0-1"]
[Annotator "TA"]
[ECO "E91"]
[WhiteElo "2029"]
[BlackElo "2428"]
[PlyCount "105"]
[EventDate "2025.01.06"]
[EventType "swiss"]
[EventCountry "MNC"]
[SourceTitle "playchess.com"]
[Source "ChessBase"]
[SourceQuality "1"]
[TimeControl "180+2"]

{[%evp 20,105,68,70,81,79,82,86,80,0,0,0,0,0,0,-71,-65,-120,-118,-108,-3,-67,-69,-243,-233,-241,-250,-245,-241,-241,-245,-244,-244,-243,-231,-234,-172,-227,-221,-256,-8,-20,-8,-8,-8,-164,-162,-153,-91,-159,-117,-159,-161,-276,-289,-349,-262,-358,-218,-355,-123,-142,-138,-544,-477,-1615,-1526,-1475,-1573,-1649,-1636,-1458,-86,-86,-87,-86,-113,-614,-167,-330,-273,-314,-199,-729,-321,-306,-254,-29987]} 1. d4 {[%emt 0:00:03]} Nf6 {[%emt 0:00:00]} 2. Nf3 {[%emt 0:00:01]} g6 {[%emt 0:00:02]} 3. c4 {[%emt 0:00:01]} Bg7 {[%emt 0:00:01]} 4. Nc3 {[%emt 0:00:00]} d6 {[%emt 0:00:01]} 5. e4 {[%emt 0:00:01]} Bg4 {[%emt 0:00:01]} 6. Be2 {[%emt 0:00:02]} Nc6 {[%emt 0:00:02]} 7. d5 {[%emt 0:00:03]} Bxf3 {[%emt 0:00:03]} 8. Bxf3 {[%emt 0:00:01]} Ne5 {[%emt 0:00:01][%cal Bc6e5,Be5d7,Bd7b6,Bb6c4][%mdl 32]} 9. Be2 {[%emt 0:00:01]} O-O {[%emt 0:00:02]} 10. O-O {[%emt 0:00:04]} c6 {[%emt 0:00:01]} 11. Be3 {[%emt 0:00:26]} Rc8 {[%emt 0:00:02]} 12. f4 {[%emt 0:00:20]} (12. Bxa7 b6 $11) 12... Ned7 {[%emt 0:00:01]} 13. Rc1 {[%emt 0:00:13]} (13. Bxa7 b6 $11) 13... Qa5 {[%emt 0:00:06] [#]} 14. Bf3 {[%emt 0:00:32]} (14. a3 $1 $16) 14... Nb6 $11 {[%emt 0:00:10]} 15. Qe2 {[%emt 0:00:25][%cal Oc4c5]} cxd5 $1 {[%emt 0:00:06]} 16. cxd5 {[%emt 0:00:01]} Nfd7 {[%emt 0:00:06]} 17. Qf2 {[%emt 0:00:38]} (17. Bg4 $11) 17... Nc4 $17 {[%emt 0:00:15]} 18. Bd4 {[%emt 0:00:00]} (18. Bxa7 $2 Nxb2 (18... b6 $2 19. e5 $19) 19. Qxb2 Bxc3 (19... Qxa7+ $2 20. Kh1 $19) 20. Rxc3 (20. Qxb7 $2 Rc7 $19) 20... Qxc3 $19) (18. Bg4 $15 Nxe3 19. Qxe3) 18... Bxd4 {[%emt 0:00:04]} 19. Qxd4 {[%emt 0:00:02]} Qc5 {[%emt 0:00:07]} (19... Nxb2 $17 {and ...Rc4 should not be overlooked} 20. Ne2 Qa3 (20... Qxa2 21. Bg4 $16)) 20. Qxc5 {[%emt 0:00:02]} (20. Ne2 $1 $11) 20... Nxc5 $15 {[%emt 0:00:01]} 21. Rf2 $2 {[%emt 0:00:08]} (21. Be2 $1 $15 Nd2 (21... Nxb2 22. Rb1 $15) 22. Rfe1) 21... Nd3 $1 $19 {[%emt 0:00:02][%csl LRb2,LRc1,LRf2,LRf4]} 22. Rcc2 {[%emt 0:00:01]} Nxf2 {[%emt 0:00:03]} (22... Nxf4 23. Bg4 f5 24. Bxf5 gxf5 25. Rxf4 $11) 23. Kxf2 {[%emt 0:00:03] [#]} Nxb2 $1 {[%emt 0:00:03][%mdl 512]} 24. Rxb2 {[%emt 0:00:00]} Rxc3 {[%emt 0:00:02]} 25. Rxb7 {[%emt 0:00:02][%mdl 4096] Endgame KRR-KRB} Rc2+ {[%emt 0:00:03]} 26. Kg3 {[%emt 0:00:00]} Rxa2 {[%emt 0:00:04]} 27. Rxe7 {[%emt 0:00:01]} Rd8 {[%emt 0:00:10] Against Rd7} 28. e5 {[%emt 0:00:05]} (28. Rc7) 28... Kf8 {[%emt 0:00:26]} 29. Rb7 {[%emt 0:00:06]} a5 $2 {[%emt 0:00:07]} (29... Re8 $19 30. exd6 Rd8) 30. e6 $11 {[%emt 0:00:00]} fxe6 {[%emt 0:00:00]} 31. dxe6 {[%emt 0:00:04] and e7+ would now be decisive} Re8 {[%emt 0:00:01]} 32. Rxh7 $2 {[%emt 0:00:02]} (32. Rf7+ $11 Kg8 33. Ra7) 32... Rxe6 $19 {[%emt 0:00:02]} 33. Ra7 {[%emt 0:00:10]} Re7 {[%emt 0:00:09]} ({Black should play} 33... Ra4 34. Bc6 Rd4 35. Rxa5 Rf6) 34. Ra8+ {[%emt 0:00:07]} ({Better is} 34. Ra6) 34... Kg7 $17 {[%emt 0:00:02]} 35. Ra6 {[%emt 0:00:00][%cal Og3g4]} Rd7 {[%emt 0:00:01]} 36. Bg4 {[%emt 0:00:02]} (36. Kg4 {keeps fighting.}) 36... Rd8 $19 {[%emt 0:00:03]} 37. Kh4 {[%emt 0:00:09]} Kf6 {[%emt 0:00:14]} 38. Bf3 {[%emt 0:00:05]} a4 {[%emt 0:00:06]} 39. Bd5 {[%emt 0:00:04]} (39. Kg3 $142) 39... Ra1 $2 {[%emt 0:00:24]} (39... Rd2 $19 40. Bc6 Rc8 41. Bxa4 Rxg2 42. Rxd6+ Kf7 43. Rd7+ Ke6) 40. Ra7 $17 {[%emt 0:00:03]} Rf8 {[%emt 0:00:08] Prevents Rf7+} 41. Rd7 $2 {[%emt 0:00:06][%mdl 8192]} (41. Kg4 $17 {is a better chance.}) 41... Kf5 {[%emt 0:00:08]} 42. Rxd6 {[%emt 0:00:01]} (42. Re7 $142 Rh8+ (42... Kxf4 43. g3+ Kf5 44. g4+ Kf6 45. Re6+ Kg7 46. Re7+ Kh8 47. Kg5 $11) 43. Kg3 Ra3+ 44. Bf3) 42... Kxf4 $19 {[%emt 0:00:08][%cal Rf8h8]} 43. g3+ {[%emt 0:00:06]} Ke5 {[%emt 0:00:01]} 44. Rd7 {[%emt 0:00:01]} Rd1 {[%emt 0:00:06]} 45. Re7+ {[%emt 0:00:02]} Kf5 $2 {[%emt 0:00:05]} (45... Kxd5 46. Rd7+ Kc4 47. Rxd1 $17) (45... Kd6 $19 {has better winning chances.} 46. Re4 Rh8+ (46... Rxd5 $2 47. Rxa4 Ke6 48. Kg4 $19) 47. Kg4 Kxd5 (47... Rxd5 $2 48. Rxa4 Ke6 49. h3 $19) 48. Rxa4 Rd4+ (48... Rxh2 $2 49. Kg5 $19) 49. Rxd4+ Kxd4) 46. g4+ $17 {[%emt 0:00:05]} Kf6 {[%emt 0:00:09]} 47. Re6+ {[%emt 0:00:01]} Kg7 {[%emt 0:00:03]} 48. Bc4 $2 {[%emt 0:00:01][%mdl 8192]} (48. Re7+ $17 Kf6 49. Re6+ Kg7 50. Re7+) 48... Rf7 $2 {[%emt 0:00:14]} (48... Rf4 49. Bb5 Rg1) 49. Ra6 $2 {[%emt 0:00:01]} (49. Kg5 Kh7 50. Ra6) 49... Rc7 {[%emt 0:00:03]} 50. Bb5 {[%emt 0:00:02]} Rd2 {[%emt 0:00:07]} ({Weaker is} 50... g5+ 51. Kh5 $15) 51. Rxa4 $2 {[%emt 0:00:04]} (51. h3) 51... Rxh2+ {[%emt 0:00:01]} (51... Rc5 $142 {( -> ...g5+)} 52. Bc4 g5+ (52... Rxh2+ $2 53. Kg3 $19) 53. Kg3 Rc2 54. Ra7+ Kf6) 52. Kg3 $19 {[%emt 0:00:00]} Rd2 {[%emt 0:00:03]} 53. Ra7 $2 {[%emt 0:00:10]} (53. Ra3 $19) 0-1

[Event "European Women Blitz-ch 2024"]
[Site "Monaco"]
[Date "2025.01.10"]
[Round "1.8"]
[White "Khotenashvili, Bella"]
[Black "Uta, Adeline-Ramona"]
[Result "1-0"]
[Annotator "TA"]
[ECO "A37"]
[WhiteElo "2420"]
[BlackElo "2028"]
[PlyCount "69"]
[EventDate "2025.01.06"]
[EventType "swiss"]
[EventCountry "MNC"]
[SourceTitle "playchess.com"]
[Source "ChessBase"]
[SourceQuality "1"]
[TimeControl "180+2"]

{[%evp 9,68,0,16,10,17,10,10,1,12,0,93,70,127,74,116,78,70,53,60,61,70,13,22,18,24,0,0,0,44,42,38,36,45,41,78,77,110,0,0,0,0,0,0,0,59,25,55,0,22,0,1477,1331,1675,1552,29989,29990,29990,29991,29991,29990,29999]} 1. Nf3 {[%emt 0:00:02]} c5 {[%emt 0:00:02]} 2. g3 {[%emt 0:00:03]} Nc6 {[%emt 0:00:05]} 3. Bg2 {[%emt 0:00:05]} g6 {[%emt 0:00:01]} 4. c4 {[%emt 0:00:20]} Bg7 {[%emt 0:00:02]} 5. Nc3 {[%emt 0:00:00]} d6 {[%emt 0:00:11]} 6. Rb1 {[%emt 0:00:10]} e5 {[%emt 0:00:08]} 7. a3 {[%emt 0:00:07]} a5 {[%emt 0:00:09]} 8. d3 {[%emt 0:00:06]} Nge7 {[%emt 0:00:02]} 9. h4 {[%emt 0:00:28]} Nd4 {[%emt 0:01:08]} (9... h6 $11 {keeps the balance.}) 10. h5 $16 {[%emt 0:00:31]} Nef5 {[%emt 0:00:24]} ({Black should play} 10... O-O $14) 11. h6 {[%emt 0:00:15]} (11. Kf1 $142) 11... Bf6 {[%emt 0:00:08]} 12. Nxd4 {[%emt 0:00:20]} Nxd4 {[%emt 0:00:10]} 13. Nd5 {[%emt 0:00:06]} O-O {[%emt 0:00:17]} 14. e3 {[%emt 0:00:07]} Nc6 {[%emt 0:00:19]} 15. Nxf6+ {[%emt 0:00:15]} (15. Qb3 $14) 15... Qxf6 $11 {[%emt 0:00:02]} 16. Bd2 {[%emt 0:00:01]} Qe7 {[%emt 0:00:13]} 17. Bc3 {[%emt 0:00:06]} Be6 {[%emt 0:00:02]} 18. Qd2 {[%emt 0:00:04]} a4 {[%emt 0:00:03]} 19. b4 {[%emt 0:00:10]} axb3 {[%emt 0:00:02]} 20. Rxb3 {[%emt 0:00:01]} Ra7 {[%emt 0:00:02]} 21. O-O {[%emt 0:00:12]} Rfa8 {[%emt 0:00:14]} 22. Rfb1 {[%emt 0:00:02] White is more active.} Bc8 {[%emt 0:00:00]} 23. Bxc6 {[%emt 0:00:10]} (23. d4 $16) 23... bxc6 {[%emt 0:00:00]} 24. Rb8 {[%emt 0:00:01]} Qc7 {[%emt 0:00:00]} 25. Rxa8 {[%emt 0:00:01]} Rxa8 {[%emt 0:00:00]} 26. Qb2 {[%emt 0:00:01]} Be6 {[%emt 0:00:02]} (26... Qd8 $11) 27. f4 {[%emt 0:00:01]} (27. a4 $5) 27... f6 {[%emt 0:00:02][%cal Bf7f6,Bf6f5][%mdl 32]} 28. Kg2 {[%emt 0:00:01]} ({White should try} 28. a4 $1 $14) 28... Ra7 {[%emt 0:00:03]} 29. Kf3 {[%emt 0:00:03]} Qe7 $2 {[%emt 0:00:02][%mdl 8192] Black is weak on the dark squares} (29... Kf7 $11) 30. Qb8+ $18 {[%emt 0:00:01]} Kf7 {[%emt 0:00:03]} 31. Qh8 {[%emt 0:00:01]} f5 {[%emt 0:00:05]} 32. Qxh7+ {[%emt 0:00:02]} Kf6 {[%emt 0:00:01]} 33. Qh8+ {[%emt 0:00:02]} Kf7 {[%emt 0:00:02]} 34. Rb8 {[%emt 0:00:02][%csl Gh6][%cal Rh8g7]} Qf6 {[%emt 0:00:02]} 35. Qf8# {[%emt 0:00:01]} 1-0

[Event "European Women Blitz-ch 2024"]
[Site "Monaco"]
[Date "2025.01.10"]
[Round "1.9"]
[White "Walter, Ema"]
[Black "Narva, Mai"]
[Result "0-1"]
[Annotator "TA"]
[ECO "C45"]
[WhiteElo "2049"]
[BlackElo "2398"]
[PlyCount "56"]
[EventDate "2025.01.06"]
[EventType "swiss"]
[EventCountry "MNC"]
[SourceTitle "playchess.com"]
[Source "ChessBase"]
[SourceQuality "1"]
[TimeControl "180+2"]

{[%evp 9,56,16,4,14,6,-12,0,-119,-115,-119,-124,-160,-175,-148,-155,-182,-182,-188,-142,-168,-146,-202,-212,-354,-339,-365,-352,-401,-273,-281,-308,-365,-363,-381,-362,-650,-475,-484,-401,-562,-570,-620,-653,-614,-629,-1176,-1170,-2177,-2101]} 1. e4 {[%emt 0:00:01]} e5 {[%emt 0:00:01]} 2. Nf3 {[%emt 0:00:01]} Nc6 {[%emt 0:00:02]} 3. d4 {[%emt 0:00:05]} exd4 {[%emt 0:00:02]} 4. Nxd4 {[%emt 0:00:02]} Qf6 {[%emt 0:00:02]} 5. Nf3 {[%emt 0:00:01]} Bb4+ {[%emt 0:00:05]} 6. c3 {[%emt 0:00:02]} Bc5 {[%emt 0:00:03]} 7. Bg5 {[%emt 0:00:14]} Qg6 {[%emt 0:00:06][%cal Oh7h6]} 8. h4 {[%emt 0:00:05]} (8. Nbd2 $11 {keeps the balance.}) 8... Qxe4+ {[%emt 0:00:13]} 9. Be2 {[%emt 0:00:07] [#]} h6 $1 {[%emt 0:00:21]} 10. Bd2 {[%emt 0:00:22]} Nf6 {[%emt 0:00:13]} 11. b4 {[%emt 0:00:50]} Bb6 {[%emt 0:00:12] Black is much more active.} 12. a4 {[%emt 0:00:01]} a5 {[%emt 0:00:14]} 13. b5 {[%emt 0:00:05]} Ne7 {[%emt 0:00:30]} (13... Ne5 $19 {And now ...Nd3+ would win.} 14. O-O d6) 14. c4 {[%emt 0:00:49]} d6 $40 {[%emt 0:00:15][%mdl 128] Black goes for the king.} 15. Nc3 {[%emt 0:00:02]} (15. Bc3 $17) 15... Qg6 $19 {[%emt 0:00:06]} 16. g3 {[%emt 0:00:32]} (16. O-O {keeps fighting.}) 16... Ng4 {[%emt 0:00:12]} 17. Rf1 {[%emt 0:00:09]} O-O {[%emt 0:00:12]} 18. Bf4 {[%emt 0:00:01]} Nf5 {[%emt 0:00:20]} 19. Nd5 {[%emt 0:00:01]} Bc5 {[%emt 0:00:02]} 20. Bd3 {[%emt 0:00:03]} Re8+ {[%emt 0:00:01]} 21. Kd2 {[%emt 0:00:03]} Nxf2 {[%emt 0:00:04]} (21... Bxf2 22. h5 Qe6 (22... Qxh5 23. Rh1 $14) 23. Nxc7 Be3+ (23... Qe7 24. Nxe8 d5 25. Nc7 $11) 24. Kc3 Qf6+ 25. Kb3 $15) 22. Qc2 $2 {[%emt 0:00:06]} (22. Rxf2 Bxf2 23. Nxc7) 22... Nxd3 {[%emt 0:00:02]} 23. Qxd3 {[%emt 0:00:01]} Bb4+ {[%emt 0:00:10]} (23... Nxg3 24. Bxg3 Bf5 (24... Qxg3 $2 25. Nf6+ Kf8 26. Nxe8 $19) 25. Ne5 dxe5 (25... Rxe5 26. Rxf5 $16) 26. Qxf5 (26. Rxf5 $2 e4 $19) 26... Qxg3 27. Rad1 $19) 24. Kc2 {[%emt 0:00:04]} (24. Kc1 $142 Be6 (24... Nxg3 $2 25. Qxg6 Ne2+ 26. Kb2 $19) 25. Nxc7) 24... c6 {[%emt 0:00:05]} (24... Nxg3 25. Qxg6 fxg6 26. Bxg3 $11) 25. bxc6 {[%emt 0:00:02]} bxc6 {[%emt 0:00:01]} ({Inferior is} 25... Nxg3 26. Qxg6 fxg6 27. Bxg3 Bf5+ 28. Kb3 bxc6 29. Nxb4 Re3+ 30. Kb2 Re2+ 31. Kc1 (31. Kc3 axb4+ 32. Kxb4 Rb8+ 33. Ka3 Re3+ 34. Ka2 Bd3 $19) 31... axb4 32. Nd4 $16 (32. Bxd6 $2 {loses.} Rc2+ 33. Kd1 Rd8 $19)) 26. Nxb4 {[%emt 0:00:01]} axb4 {[%emt 0:00:20]} 27. Rad1 {[%emt 0:00:03]} Ne3+ {[%emt 0:00:00]} 28. Bxe3 {[%emt 0:00:02]} Bf5 {[%emt 0:00:00]} 0-1

[Event "European Women Blitz-ch 2024"]
[Site "Monaco"]
[Date "2025.01.10"]
[Round "1.10"]
[White "Ushenina, Anna"]
[Black "Moerwald, Magdalena"]
[Result "1-0"]
[Annotator "TA"]
[ECO "D30"]
[WhiteElo "2418"]
[BlackElo "2004"]
[PlyCount "81"]
[EventDate "2025.01.06"]
[EventType "swiss"]
[EventCountry "MNC"]
[SourceTitle "playchess.com"]
[Source "ChessBase"]
[SourceQuality "1"]
[TimeControl "180+2"]

{[%evp 12,81,11,0,8,-9,-4,-17,-16,-35,-31,-27,-39,-25,-18,-58,-32,-37,-35,-242,-29,-74,-33,-74,-81,-143,-127,-120,-110,-130,-117,-121,-29,-231,-229,-281,96,108,152,160,198,202,179,190,203,161,187,116,314,153,1279,108,124,0,157,83,85,116,116,115,138,71,232,232,562,600,4686,257,265,255,2092,1769]} 1. Nf3 {[%emt 0:00:00]} Nf6 {[%emt 0:00:01]} 2. d4 {[%emt 0:00:01]} d5 {[%emt 0:00:01]} 3. c4 {[%emt 0:00:02]} e6 {[%emt 0:00:02]} 4. Bg5 {[%emt 0:00:08]} Be7 {[%emt 0:00:02]} 5. e3 {[%emt 0:00:02]} O-O {[%emt 0:00:05]} 6. Nbd2 {[%emt 0:00:05]} Nbd7 {[%emt 0:00:11][%cal Bb8d7,Bd7c5,Bc5d3][%mdl 32]} 7. Rc1 {[%emt 0:00:02]} c5 {[%emt 0:00:04]} 8. dxc5 {[%emt 0:00:06]} Nxc5 {[%emt 0:00:20]} 9. a3 {[%emt 0:00:19]} dxc4 {[%emt 0:00:05]} 10. Bxc4 {[%emt 0:00:01]} Nd3+ {[%emt 0:00:03]} 11. Bxd3 {[%emt 0:00:01]} Qxd3 {[%emt 0:00:02]} 12. Qc2 {[%emt 0:00:02]} Qb5 {[%emt 0:00:15]} 13. Nc4 {[%emt 0:00:13]} Bd7 {[%emt 0:00:07]} 14. O-O {[%emt 0:00:03]} Rac8 {[%emt 0:00:02]} 15. Nfe5 $2 {[%emt 0:00:20]} (15. Rfd1 $15) 15... Bc6 $2 {[%emt 0:00:17]} (15... Rxc4 $1 $19 16. Nxc4 Qxg5) 16. Qe2 {[%emt 0:00:38][%cal Oe3e4]} Qd5 {[%emt 0:00:32][%csl Gc6][%cal Rd5g2]} 17. f3 {[%emt 0:00:26]} Bb5 {[%emt 0:00:12]} 18. Bf4 {[%emt 0:00:19]} (18. f4 $142) 18... Nh5 $17 {[%emt 0:00:13]} 19. Rfd1 {[%emt 0:00:05]} Nxf4 {[%emt 0:00:08]} 20. exf4 {[%emt 0:00:01]} Qc5+ {[%emt 0:00:06]} 21. Kh1 {[%emt 0:00:03]} f6 {[%emt 0:00:12]} (21... Rfd8 $17 {...f6 would now be deadly.} 22. Re1 Qc7) 22. Nd7 $2 {[%emt 0:00:13]} (22. Ng6 $1 $11 {and White is okay.} hxg6 (22... Bxc4 23. Nxe7+ Qxe7 24. Rxc4 $11) 23. Qxe6+ Kh7 24. Ne5) 22... Bxc4 $19 {[%emt 0:00:14] A strong pair of Bishops.} 23. Qe1 {[%emt 0:00:10] [#]} Qc6 $2 {[%emt 0:00:21]} ({Better is} 23... Qb5 $1 $19 24. Nxf8 Rxf8 (24... Bxf8 $2 25. Rd4 $19) (24... Kxf8 $2 25. Qe3 $19)) 24. Nxf8 $16 {[%emt 0:00:03]} Bxf8 {[%emt 0:00:01]} (24... Rxf8 $2 25. b3 b5 26. a4 $18 (26. bxc4 bxc4 27. Rd4 Bxa3 $18)) 25. b3 {[%emt 0:00:00]} Qa6 {[%emt 0:00:04]} 26. Rxc4 {[%emt 0:00:06]} Rxc4 {[%emt 0:00:01]} 27. bxc4 {[%emt 0:00:00]} Qxc4 $18 {[%emt 0:00:01][%mdl 4096] Endgame KQR-KQB} 28. Qe3 {[%emt 0:00:02]} Bc5 {[%emt 0:00:04]} 29. Qd3 {[%emt 0:00:02]} ({White should try} 29. Rc1 $18 Qf1+ 30. Rxf1 Bxe3 31. Rd1) 29... Qa4 $2 {[%emt 0:00:06]} (29... Qxf4 $16 30. Qd7 Qc4 31. Qc8+ (31. Qxb7 Bxa3 32. Qxa7 Bc5 $16) 31... Kf7 32. Qxb7+ Kg6) 30. Qd8+ {[%emt 0:00:05]} (30. f5 $18 {is the precise move to win.} Be7 31. fxe6 (31. Qd7 Qxa3 32. fxe6 g5 $18)) 30... Kf7 $2 {[%emt 0:00:00]} (30... Bf8 $16 31. f5 e5 32. Qd5+ Kh8) 31. Qc7+ $2 {[%emt 0:00:08]} (31. Rd7+ $18 Kg6 32. Qe8+ (32. Rxb7 Qxa3 33. Qd1 Qe3 $16) 32... Kh6 33. g4 (33. Qxe6 Qxf4 34. Qh3+ Kg6 $18)) 31... Kg6 {[%emt 0:00:02] [#]} 32. Rd7 {[%emt 0:00:08]} (32. Qd7 $1 $16 {[%cal Rd7a4]} Qxd7 33. Rxd7) 32... Bf8 $2 {[%emt 0:00:01]} (32... Kh6 $1 $11 33. Rd3 (33. Rxg7 $2 Qd1#) (33. Qxb7 $2 Qc2 $19) 33... b6) 33. h3 {[%emt 0:00:06]} (33. Qxb7 $142 {and Qe4+ would now be decisive} a5 34. g3) 33... Qxa3 {[%emt 0:00:01]} 34. Qc2+ {[%emt 0:00:04]} Kh6 {[%emt 0:00:03]} 35. Rxb7 {[%emt 0:00:01] White is much more active.} a5 {[%emt 0:00:04]} 36. Qd2 {[%emt 0:00:04] Dodges Qe3} (36. Rb5 $142 {[%cal Ob5h5] White wants to mate with Rh5+!.} g6 37. Qb2) 36... Qa1+ $2 {[%emt 0:00:02]} (36... Bb4 $16 37. Qc2 Qa1+ 38. Kh2 Qd4) 37. Kh2 {[%emt 0:00:01]} Kg6 $2 {[%emt 0:00:01]} (37... Bb4 38. Qf2 (38. Qd7 Bf8 $18) 38... Qe1 39. Qxe1 Bxe1) 38. Qd3+ {[%emt 0:00:02]} f5 {[%emt 0:00:01]} 39. Qc4 $2 {[%emt 0:00:02] Repels Bc5} (39. Qd8 {[%csl Gf4][%cal Rd8g5]} Qf6 40. Qe8+ (40. Qxa5 Bd6 $18) 40... Kh6 41. Rf7) 39... Qf6 {[%emt 0:00:03]} 40. Rb6 {[%emt 0:00:01]} Be7 $2 {[%emt 0:00:04]} (40... Kf7 41. Qc7+ Be7) 41. Rxe6 {[%emt 0:00:01]} 1-0

[Event "European Women Blitz-ch 2024"]
[Site "Monaco"]
[Date "2025.01.10"]
[Round "1.12"]
[White "Follana Albelda, Lucia"]
[Black "Osmak, Yuliia"]
[Result "0-1"]
[Annotator "TA"]
[ECO "B01"]
[WhiteElo "2024"]
[BlackElo "2463"]
[PlyCount "30"]
[EventDate "2025.01.06"]
[EventType "swiss"]
[EventCountry "MNC"]
[SourceTitle "playchess.com"]
[Source "ChessBase"]
[SourceQuality "1"]
[TimeControl "180+2"]

{[%evp 11,30,0,11,3,67,57,70,0,16,-38,-32,-227,-229,-500,-519,-514,-520,-535,-545,-808,-810]} 1. e4 {[%emt 0:00:01]} Nc6 {[%emt 0:00:01]} 2. d4 {[%emt 0:00:04]} d5 {[%emt 0:00:01]} 3. exd5 {[%emt 0:00:05]} Qxd5 {[%emt 0:00:02]} 4. Nf3 {[%emt 0:00:05]} Bg4 {[%emt 0:00:01]} 5. Be2 {[%emt 0:00:01]} O-O-O {[%emt 0:00:10]} 6. c4 {[%emt 0:00:00]} Qh5 {[%emt 0:00:03]} 7. Be3 {[%emt 0:00:02]} e5 {[%emt 0:00:04]} ({Better is} 7... Nh6 $11) 8. d5 $14 {[%emt 0:00:06] aiming for Nbd2.} Nf6 {[%emt 0:00:19]} 9. Nc3 {[%emt 0:00:25]} (9. Nbd2 $1 $14 Ne7 10. Ng5 (10. Bxa7 e4 $11)) 9... e4 $11 {[%emt 0:00:14]} 10. Ng5 {[%emt 0:00:26]} (10. Nd2 $11 Ne5 11. O-O) 10... Ne5 $1 $15 {[%emt 0:00:09] Threatens to win with ...Nxc4.} 11. Qd4 {[%emt 0:00:35] [#] White does not recover from this.} (11. h3 $15 Bxe2 12. Qxe2) 11... Bxe2 $19 {[%emt 0:00:12]} 12. Nxe2 $2 {[%emt 0:00:01]} (12. Qxe5 Bxc4 13. Qd4 Nxd5 (13... Bxd5 $2 14. Qxa7 Bc6 15. a3 $19) 14. Qxc4 Nxe3 15. fxe3 Qh4+ (15... Qxg5 $2 16. O-O $19) 16. g3 Qxg5 17. O-O) 12... Nd3+ {[%emt 0:00:02] Black is clearly winning.} 13. Kf1 {[%emt 0:00:16]} Bc5 {[%emt 0:00:01]} 14. Qc3 {[%emt 0:00:39][%cal Og5e4]} Bxe3 {[%emt 0:00:02]} 15. fxe3 {[%emt 0:00:04]} Qxg5 {[%emt 0:00:02] Weighted Error Value: White=1.07/Black=0.16 (very precise) .  Loses game:     	White=1     	---        Mistake:       	White=3     	Black=1      Inaccurate:     	White=1     	---        OK:         	---       	Black=3      Best:        	White=2     	Black=3      Strong:       	---       	Black=1} 0-1

[Event "European Women Blitz-ch 2024"]
[Site "Monaco"]
[Date "2025.01.10"]
[Round "1.13"]
[White "Maltsevskaya, Aleksandra"]
[Black "Dai, Irmak"]
[Result "1-0"]
[Annotator "TA"]
[ECO "B81"]
[WhiteElo "2368"]
[BlackElo "1877"]
[PlyCount "67"]
[EventDate "2025.01.06"]
[EventType "swiss"]
[EventCountry "MNC"]
[SourceTitle "playchess.com"]
[Source "ChessBase"]
[SourceQuality "1"]
[TimeControl "180+2"]

{[%evp 11,67,33,25,27,33,38,30,41,45,20,22,0,0,0,0,-12,181,178,212,213,407,394,450,429,900,477,1272,404,429,436,430,430,336,225,216,168,534,99,497,491,443,62,591,572,751,731,997,909,1023,1006,1003,987,1170,1114,1863,1854,1793,1772]} 1. e4 {[%emt 0:00:03]} c5 {[%emt 0:00:01]} 2. Nf3 {[%emt 0:00:01]} d6 {[%emt 0:00:01]} 3. d4 {[%emt 0:00:01]} cxd4 {[%emt 0:00:01]} 4. Nxd4 {[%emt 0:00:02]} Nf6 {[%emt 0:00:01]} 5. Nc3 {[%emt 0:00:01]} e6 {[%emt 0:00:01]} 6. g4 {[%emt 0:00:10]} h6 {[%emt 0:00:04]} 7. h3 {[%emt 0:00:06]} Be7 {[%emt 0:00:32]} 8. Be3 {[%emt 0:00:02]} a6 {[%emt 0:00:28]} 9. Bg2 {[%emt 0:00:21]} Nc6 {[%emt 0:00:32]} 10. Nxc6 {[%emt 0:00:27]} bxc6 {[%emt 0:00:03]} 11. e5 {[%emt 0:00:02]} Nd5 {[%emt 0:00:06]} 12. exd6 {[%emt 0:00:02]} Bxd6 {[%emt 0:00:08]} 13. Ne4 {[%emt 0:00:01]} Bc7 $2 {[%emt 0:00:10]} (13... Be7 $11) 14. Bc5 $18 {[%emt 0:00:13]} Bb7 {[%emt 0:00:47] [#]} 15. Qf3 $1 {[%emt 0:00:20]} Nf4 $2 {[%emt 0:00:28]} (15... Be5 16. O-O-O Qc7) 16. Rd1 {[%emt 0:00:07][%cal Oe4f6] And now Nf6+! would win.} Nxg2+ {[%emt 0:00:02]} 17. Qxg2 {[%emt 0:00:01]} Qb8 {[%emt 0:00:03]} (17... Qh4 $142 18. O-O h5) 18. O-O {[%emt 0:00:09]} e5 {[%emt 0:00:05]} (18... Bf4 $142 19. Qf3 Bh2+ 20. Kh1 Qc7) 19. Nd6+ {[%emt 0:00:21]} (19. Qf3 $142 {[%cal Of3f6] Intending Qf6! and mate.} Qd8 20. Rxd8+ Rxd8 21. Rd1 Rxd1+ 22. Qxd1) 19... Bxd6 {[%emt 0:00:02]} 20. Bxd6 {[%emt 0:00:02]} Qc8 {[%emt 0:00:01] Black is weak on the dark squares} 21. Rfe1 {[%emt 0:00:19]} (21. Bxe5 O-O $16) 21... f6 {[%emt 0:00:01]} 22. Qe4 {[%emt 0:00:06]} Kf7 {[%emt 0:00:03] Prevents Qg6+.} 23. Bc5 {[%emt 0:00:08]} Re8 $2 {[%emt 0:00:01]} (23... Rd8 24. f4 Qe6) 24. Rd2 $2 {[%emt 0:00:08]} (24. Rd6 $18 {is more deadly.}) 24... Qc7 $2 {[%emt 0:00:02][%mdl 8192] [#]} (24... Rd8 $16 {is more resistant.} 25. Red1 Rd5) 25. Qc4+ $1 {[%emt 0:00:06]} Kg6 {[%emt 0:00:03]} 26. Qb3 $2 {[%emt 0:00:07]} (26. Qd3+ $18 Kf7 27. Qd7+ Qxd7 28. Rxd7+ Kg8 29. Rxb7) 26... Rad8 $2 {[%emt 0:00:01][%mdl 8192]} ({Black should play} 26... Kh7 $14) 27. Bb6 {[%emt 0:00:02]} Qc8 {[%emt 0:00:02]} 28. Bxd8 {[%emt 0:00:02]} Rxd8 {[%emt 0:00:02]} 29. Rxd8 {[%emt 0:00:01]} Qxd8 {[%emt 0:00:02]} 30. Qxb7 {[%emt 0:00:02]} Qd2 {[%emt 0:00:01]} 31. Rf1 {[%emt 0:00:02]} Qxc2 {[%emt 0:00:01]} 32. Qb3 {[%emt 0:00:02]} Qd2 {[%emt 0:00:02]} 33. Rd1 {[%emt 0:00:02]} Qe2 {[%emt 0:00:02]} 34. Qd3+ {[%emt 0:00:01]} 1-0